bitfinex/quotes_BTCUSD_20240817
["timestamp","ask_amount","ask_price","bid_price","bid_amount"]
[1723888858380,0.00825,59429.0,59428.0,2.3431565]
[1723888858733,0.00825,59429.0,59428.0,2.48279642]
[1723888858933,0.00825,59429.0,59428.0,2.49679642]
[1723888859140,0.00825,59429.0,59428.0,2.3571565]
[1723888859458,0.00825,59429.0,59428.0,2.373152]
[1723888859662,0.00825,59429.0,59428.0,2.38238713]
[1723888859860,0.00825,59429.0,59428.0,2.36811513]
[1723888860220,0.00825,59429.0,59428.0,2.50762255]
[1723888860907,1e-06,59429.0,59428.0,2.38211453]
[1723888861116,0.000825,59430.0,59429.0,1.538511]
[1723888861244,0.000825,59430.0,59429.0,2.42947343]
[1723888861445,0.000825,59430.0,59429.0,2.48911054]
[1723888861940,1e-06,59430.0,59429.0,2.49918457]
[1723888862131,1e-06,59430.0,59429.0,2.48911054]
[1723888862332,1e-06,59430.0,59429.0,2.5077964]
[1723888862556,1e-06,59430.0,59429.0,2.50311989]
[1723888862757,1e-06,59430.0,59429.0,2.3524198]
[1723888862971,1e-06,59430.0,59429.0,2.49915402]
[1723888863309,1e-06,59430.0,59429.0,2.33837219]
[1723888863441,1e-06,59430.0,59429.0,2.50304592]
[1723888864257,1e-06,59430.0,59429.0,2.51704592]
[1723888864484,1e-06,59430.0,59429.0,2.10997019]
[1723888864655,1e-06,59430.0,59429.0,2.10536339]
[1723888865502,1e-06,59430.0,59429.0,2.10536753]
[1723888866131,1e-06,59430.0,59429.0,2.1976027]
[1723888866348,1e-06,59430.0,59429.0,2.23095311]
[1723888866499,1e-06,59430.0,59429.0,2.23494841]
[1723888866849,1e-06,59430.0,59429.0,2.23494794]
[1723888867059,1e-06,59430.0,59429.0,2.10936993]
[1723888867820,1e-06,59430.0,59429.0,2.14858643]
[1723888868043,1e-06,59430.0,59429.0,2.10936993]
[1723888868442,1e-06,59430.0,59429.0,2.14858643]
[1723888870119,1e-06,59430.0,59429.0,2.13935232]
[1723888870318,1e-06,59430.0,59429.0,2.14857764]
[1723888870683,1e-06,59430.0,59429.0,2.07601952]
[1723888870888,1e-06,59430.0,59429.0,2.14857701]
[1723888871612,1e-06,59430.0,59429.0,2.10936559]
[1723888872025,1e-06,59430.0,59429.0,2.05437701]
[1723888872388,1e-06,59430.0,59429.0,2.10736559]
[1723888872842,1e-06,59430.0,59429.0,2.10936559]
[1723888873794,1e-06,59430.0,59429.0,2.11159088]
[1723888873991,1e-06,59430.0,59429.0,2.20779113]
[1723888874193,1e-06,59430.0,59429.0,2.20779131]
[1723888874408,1e-06,59430.0,59429.0,2.20779296]
[1723888874985,0.000825,59440.0,59439.0,0.883256]
[1723888875190,0.000825,59440.0,59439.0,1.17781054]
[1723888875354,0.000825,59440.0,59439.0,1.20192378]
[1723888875866,0.000825,59440.0,59439.0,1.17781054]
[1723888876491,0.026625,59440.0,59439.0,1.17781054]
[1723888876651,0.026625,59440.0,59439.0,1.19181054]
[1723888877324,0.048825,59440.0,59439.0,1.28601054]
[1723888877524,0.048825,59440.0,59439.0,1.30001054]
[1723888878170,0.048825,59440.0,59439.0,1.32436806]
[1723888878401,0.000825,59440.0,59439.0,1.28625482]
[1723888878593,0.000825,59440.0,59439.0,1.32336806]
[1723888878768,0.000825,59440.0,59439.0,1.28525482]
[1723888879094,0.000825,59440.0,59439.0,1.29636806]
[1723888879251,0.000825,59440.0,59439.0,1.21616806]
[1723888879448,0.000825,59440.0,59439.0,1.29636806]
[1723888879651,0.000825,59440.0,59439.0,1.31036806]
[1723888880454,0.000825,59440.0,59439.0,1.32436806]
[1723888882443,0.000825,59440.0,59439.0,1.30025482]
[1723888882642,0.000825,59440.0,59439.0,1.32438837]
[1723888882812,0.000825,59440.0,59439.0,1.33362906]
[1723888883009,0.000825,59440.0,59439.0,1.32438837]
[1723888883214,0.000825,59440.0,59439.0,1.33362906]
[1723888883816,0.000825,59440.0,59439.0,1.32438837]
[1723888884436,0.026625,59440.0,59439.0,1.32438837]
[1723888884883,0.026625,59440.0,59439.0,1.23018837]
[1723888885022,0.026625,59440.0,59439.0,1.33362906]
[1723888885224,0.026625,59440.0,59439.0,1.32438837]
[1723888885621,0.026625,59440.0,59439.0,1.33362906]
[1723888885820,0.026625,59440.0,59439.0,1.32438837]
[1723888886125,0.048825,59440.0,59439.0,1.20718837]
[1723888886328,0.048825,59440.0,59439.0,0.32597782]
[1723888886974,0.048825,59440.0,59439.0,0.31197782]
[1723888887526,0.048825,59440.0,59439.0,0.55033682]
[1723888887706,0.048825,59440.0,59439.0,0.57333682]
[1723888887907,0.048825,59440.0,59439.0,0.58533682]
[1723888888332,0.048825,59440.0,59439.0,0.01424428]
[1723888888554,0.143025,59440.0,59439.0,0.14042328]
[1723888888710,0.143025,59440.0,59439.0,0.12642328]
[1723888889054,0.143025,59440.0,59439.0,0.00924428]
[1723888889487,0.048825,59440.0,59439.0,0.00924428]
[1723888889633,0.048825,59440.0,59439.0,0.00024428]
[1723888889843,0.048825,59440.0,59439.0,0.00924428]
[1723888890043,0.048825,59440.0,59439.0,0.01524428]
[1723888890246,0.048825,59440.0,59439.0,0.00924428]
[1723888890450,0.048825,59440.0,59439.0,0.00024428]
[1723888890606,0.048825,59440.0,59439.0,0.00524428]
[1723888891052,0.048825,59440.0,59439.0,0.00024428]
[1723888891457,0.048825,59440.0,59439.0,0.00524428]
[1723888891690,0.048825,59440.0,59439.0,0.01024428]
[1723888891852,0.048825,59440.0,59439.0,0.00524428]
[1723888892419,0.143025,59440.0,59439.0,0.00824428]
[1723888892696,0.269202,59440.0,59439.0,0.00524428]
[1723888892856,0.269202,59440.0,59439.0,0.00724428]
[1723888893601,0.269202,59440.0,59439.0,0.00224428]
[1723888894483,0.269202,59440.0,59439.0,0.00624428]
[1723888894891,0.269202,59440.0,59439.0,0.00224428]
[1723888895064,0.269202,59440.0,59439.0,0.00124428]
[1723888896075,0.270202,59440.0,59439.0,0.00124428]
[1723888896460,0.176002,59440.0,59439.0,0.00124428]
[1723888899538,0.428357,59440.0,59439.0,0.00124428]
[1723888899812,0.176002,59440.0,59439.0,0.00124428]
[1723888902919,0.774912,59440.0,59439.0,0.00124428]
[1723888903097,1.027267,59440.0,59439.0,0.00124428]
[1723888903303,1.030267,59440.0,59439.0,0.00124428]
[1723888903717,1.13100089,59440.0,59439.0,0.00124428]
[1723888903921,1.030267,59440.0,59439.0,0.00124428]
[1723888904153,1.1309411,59440.0,59439.0,0.00024428]
[1723888904364,1.030267,59440.0,59439.0,0.00024428]
[1723888904608,1.13091709,59440.0,59439.0,0.00024428]
[1723888905024,1.033267,59440.0,59439.0,0.00124428]
[1723888905264,1.033267,59440.0,59431.0,0.00024428]
[1723888905265,0.426583,59432.0,59431.0,0.00024428]
[1723888905454,0.773172,59432.0,59431.0,0.00024428]
[1723888907267,1.025561,59432.0,59431.0,0.00024428]
[1723888907680,1.026561,59432.0,59431.0,0.00024428]
[1723888907872,1.030561,59432.0,59431.0,0.00024428]
[1723888917407,0.778172,59432.0,59431.0,0.00024428]
[1723888920415,1.033561,59432.0,59431.0,0.00024428]
[1723888920715,1.034385,59432.0,59431.0,0.00024428]
[1723888921015,1.10899542,59432.0,59431.0,0.00024428]
[1723888921321,1.10799542,59432.0,59431.0,0.00024428]
[1723888921515,1.10899542,59432.0,59431.0,0.00024428]
[1723888921717,1.10799542,59432.0,59431.0,0.00024428]
[1723888921921,1.05672724,59432.0,59431.0,0.00024428]
[1723888922274,1.027385,59432.0,59431.0,0.00024428]
[1723888922716,1.030385,59432.0,59431.0,0.00124428]
[1723888923505,1.63727622,59432.0,59431.0,0.00124428]
[1723888923708,1.03792987,59432.0,59431.0,0.00124428]
[1723888923966,0.9655276,59432.0,59431.0,0.00124428]
[1723888924102,0.9635276,59432.0,59431.0,0.00124428]
[1723888924305,1.03796452,59432.0,59431.0,0.00124428]
[1723888924569,0.9625276,59432.0,59431.0,0.00124428]
[1723888924766,1.01381877,59432.0,59431.0,0.00124428]
[1723888924992,1.03896452,59432.0,59431.0,0.00124428]
[1723888925184,1.03896543,59432.0,59431.0,0.00124428]
[1723888925789,1.03796543,59432.0,59431.0,0.00124428]
[1723888925988,0.9625276,59432.0,59431.0,0.00124428]
[1723888926140,1.03796543,59432.0,59431.0,0.00124428]
[1723888926354,1.10702111,59432.0,59431.0,0.00124428]
[1723888926558,1.13116543,59432.0,59431.0,0.00124428]
[1723888926797,1.10603057,59432.0,59431.0,0.00124428]
[1723888927003,1.13116543,59432.0,59431.0,0.00124428]
[1723888927211,1.0557276,59432.0,59431.0,0.00124428]
[1723888927768,1.58225491,59432.0,59431.0,0.00124428]
[1723888928120,1.35601186,59432.0,59431.0,0.00124428]
[1723888928519,1.23228214,59432.0,59431.0,0.00124428]
[1723888928814,1.35809417,59432.0,59431.0,0.00124428]
[1723888929646,1.23228214,59432.0,59431.0,0.00124428]
[1723888931215,1.40978214,59432.0,59431.0,0.00124428]
[1723888931420,1.39987832,59432.0,59431.0,0.00124428]
[1723888933040,1.23228214,59432.0,59431.0,0.00124428]
[1723888939796,1.38340971,59432.0,59431.0,0.00124428]
[1723888941605,1.48340971,59432.0,59431.0,0.00124428]
[1723888942505,1.33228214,59432.0,59431.0,0.00124428]
[1723888942899,1.58467114,59432.0,59431.0,0.00124428]
[1723888943101,1.75622568,59432.0,59431.0,0.00124428]
[1723888943695,0.461654,59421.0,59419.0,0.0009075]
[1723888943923,1.25862314,59421.0,59419.0,0.0009075]
[1723888944066,1.61105914,59421.0,59419.0,0.0009075]
[1723888944268,1.78261368,59421.0,59419.0,0.0009075]
[1723888944951,1.71426567,59421.0,59419.0,0.0009075]
[1723888945390,1.56605914,59421.0,59420.0,0.0019075]
[1723888945796,1.57905914,59421.0,59420.0,0.0029075]
[1723888946773,1.72726567,59421.0,59420.0,0.0019075]
[1723888946929,1.73626567,59421.0,59420.0,0.0029075]
[1723888947131,1.59503625,59421.0,59420.0,0.0029075]
[1723888947721,1.62083625,59421.0,59420.0,0.0029075]
[1723888948130,1.64303625,59421.0,59420.0,0.0029075]
[1723888948332,1.64269973,59421.0,59420.0,0.0029075]
[1723888949611,1.81425427,59421.0,59420.0,0.0029075]
[1723888952424,1.64269973,59421.0,59420.0,0.0029075]
[1723888956707,1.65158933,59421.0,59420.0,0.0029075]
[1723888956924,1.6509224,59421.0,59420.0,0.0029075]
[1723888957097,1.7451224,59421.0,59420.0,0.0029075]
[1723888957744,1.74578588,59421.0,59420.0,0.0029075]
[1723888958526,1.7904269,59421.0,59420.0,0.0029075]
[1723888961986,1.63867727,59421.0,59420.0,0.0029075]
[1723888962148,1.78979195,59421.0,59420.0,0.0029075]
[1723888962353,1.79045543,59421.0,59420.0,0.0029075]
[1723888962593,1.63934075,59421.0,59420.0,0.0029075]
[1723888965500,1.63834075,59421.0,59420.0,0.0029075]
[1723888965918,1.63907352,59421.0,59420.0,0.0029075]
[1723888966649,1.5944325,59421.0,59420.0,0.0029075]
[1723888968327,1.5952575,59421.0,59420.0,0.0029075]
[1723888976489,1.76540337,59421.0,59420.0,0.0029075]
[1723888978238,1.5952575,59421.0,59420.0,0.0029075]
[1723888978438,1.76540337,59421.0,59420.0,0.0029075]
[1723888978734,1.93695791,59421.0,59420.0,0.0029075]
[1723888979742,1.76681204,59421.0,59420.0,0.0029075]
[1723888979944,1.81481204,59421.0,59420.0,0.0029075]
[1723888980377,1.81481204,59421.0,59419.0,0.0009075]
[1723888980378,0.002,59420.0,59419.0,0.0009075]
[1723888980551,0.16063325,59412.0,59411.0,0.0009075]
[1723888980690,0.96347839,59412.0,59411.0,0.0009075]
[1723888981288,1.46842639,59412.0,59411.0,0.0009075]
[1723888981644,1.47376291,59412.0,59411.0,0.0019075]
[1723888981850,1.63290903,59412.0,59411.0,0.0019075]
[1723888982047,1.64290903,59412.0,59411.0,0.0019075]
[1723888983490,1.65332243,59412.0,59411.0,0.0019075]
[1723888987880,1.65192618,59412.0,59411.0,0.0019075]
[1723888988832,1.65332243,59412.0,59411.0,0.0019075]
[1723888990783,1.65258966,59412.0,59411.0,0.0019075]
[1723888991526,1.65092618,59412.0,59411.0,0.0019075]
[1723888991729,1.65332243,59412.0,59411.0,0.0665075]
[1723888992556,1.65332243,59412.0,59411.0,0.1475075]
[1723888992758,1.65332243,59412.0,59411.0,0.0019075]
[1723888993161,1.65332243,59412.0,59411.0,0.1472075]
[1723888993757,1.63732243,59412.0,59411.0,0.1462075]
[1723888994162,1.66432243,59412.0,59411.0,0.1472075]
[1723888996674,1.66432243,59412.0,59411.0,0.0829075]
[1723888997507,1.66432243,59412.0,59411.0,0.0019075]
[1723889003170,1.68652243,59412.0,59411.0,0.0019075]
[1723889005884,1.75399643,59412.0,59411.0,0.0019075]
[1723889007103,1.14058325,59409.0,59408.0,0.0009075]
[1723889007142,1.39306925,59409.0,59408.0,0.0009075]
[1723889007367,1.78516639,59409.0,59408.0,0.0009075]
[1723889008367,1.79916639,59409.0,59408.0,0.0009075]
[1723889008645,1.45008414,59409.0,59408.0,0.1462075]
[1723889008909,1.54528414,59409.0,59408.0,0.1462075]
[1723889009161,1.71750216,59409.0,59408.0,0.0009075]
[1723889009875,1.71823493,59409.0,59408.0,0.0009075]
[1723889010281,1.75803493,59409.0,59408.0,0.0009075]
[1723889011439,1.93553493,59409.0,59408.0,0.0009075]
[1723889012423,1.95773493,59409.0,59408.0,0.0009075]
[1723889012626,2.21022093,59409.0,59408.0,5e-07]
[1723889013767,0.70735825,59404.0,59403.0,0.0009075]
[1723889013974,1.49875721,59404.0,59403.0,0.0009075]
[1723889014173,1.85126521,59404.0,59403.0,0.0009075]
[1723889014745,2.10377321,59404.0,59403.0,0.0009075]
[1723889014922,2.11777321,59404.0,59403.0,0.0009075]
[1723889015771,1.87926521,59404.0,59403.0,0.0009075]
[1723889016001,1.79077939,59404.0,59403.0,0.0009075]
[1723889016316,1.77677939,59404.0,59403.0,0.0009075]
[1723889016558,1.79077939,59404.0,59403.0,0.0009075]
[1723889016762,1.80110933,59404.0,59403.0,0.0009075]
[1723889016959,1.97266387,59404.0,59403.0,0.0009075]
[1723889019178,1.87846387,59404.0,59403.0,0.0009075]
[1723889019350,1.97266387,59404.0,59403.0,0.0009075]
[1723889020992,1.97266387,59404.0,59365.0,0.1]
[1723889020993,0.358277,59393.0,59390.0,0.1442]
[1723889021225,1.32811719,59393.0,59390.0,0.1442]
[1723889021451,1.41043539,59393.0,59390.0,0.1442]
[1723889021623,1.51043539,59393.0,59390.0,0.1442]
[1723889021801,1.76299039,59393.0,59390.0,0.1442]
[1723889022477,1.77699039,59393.0,59390.0,0.1442]
[1723889022685,1.90817891,59393.0,59390.0,0.1442]
[1723889023057,1.89417891,59393.0,59390.0,0.1442]
[1723889023258,1.77699039,59393.0,59390.0,0.1442]
[1723889023460,1.79099039,59393.0,59390.0,0.1442]
[1723889023663,1.80133325,59393.0,59390.0,0.1442]
[1723889024848,1.597937,59393.0,59392.0,0.1451075]
[1723889025053,1.76977809,59393.0,59392.0,0.1451075]
[1723889025253,1.597937,59393.0,59392.0,0.1451075]
[1723889025480,1.76978036,59393.0,59392.0,0.1451075]
[1723889025680,1.94306767,59393.0,59392.0,0.1451075]
[1723889027631,1.77288779,59393.0,59392.0,0.1451075]
[1723889028831,1.77049154,59393.0,59392.0,0.1451075]
[1723889029029,1.77222431,59393.0,59392.0,0.1451075]
[1723889029232,1.77288779,59393.0,59392.0,0.1451075]
[1723889029992,1.77222431,59393.0,59392.0,0.1451075]
[1723889030198,1.77288779,59393.0,59392.0,0.1451075]
[1723889030829,1.77222431,59393.0,59392.0,0.1451075]
[1723889031028,1.77288779,59393.0,59392.0,0.1451075]
[1723889032662,1.77288779,59393.0,59392.0,0.0805075]
[1723889038616,1.67529154,59393.0,59392.0,0.1415075]
[1723889038786,1.76949154,59393.0,59392.0,0.1415075]
[1723889038992,1.77149154,59393.0,59392.0,0.1415075]
[1723889039598,1.77215502,59393.0,59392.0,0.1415075]
[1723889040379,1.77149154,59393.0,59392.0,0.1415075]
[1723889040581,1.77215502,59393.0,59392.0,0.1415075]
[1723889041882,1.77149154,59393.0,59392.0,0.1415075]
[1723889042306,1.77215502,59393.0,59392.0,0.1415075]
[1723889042517,1.77149154,59393.0,59392.0,0.1415075]
[1723889043251,1.77215502,59393.0,59392.0,0.1415075]
[1723889044303,1.76949154,59393.0,59392.0,0.1415075]
[1723889044505,1.94061997,59393.0,59392.0,0.1415075]
[1723889045288,1.94128345,59393.0,59392.0,0.1415075]
[1723889045490,1.94161997,59393.0,59392.0,0.1415075]
[1723889046268,1.94237208,59393.0,59392.0,0.1415075]
[1723889047505,1.77215502,59393.0,59392.0,0.1415075]
[1723889047734,1.77149154,59393.0,59392.0,0.1415075]
[1723889048970,1.77215502,59393.0,59392.0,0.1415075]
[1723889049473,1.76949154,59393.0,59392.0,0.1415075]
[1723889049853,1.250182,59393.0,59392.0,0.1415075]
[1723889050058,1.244382,59393.0,59392.0,0.1415075]
[1723889050263,1.39578893,59393.0,59392.0,0.1415075]
[1723889050399,1.244382,59393.0,59392.0,0.1415075]
[1723889050604,1.39578893,59393.0,59392.0,0.1415075]
[1723889050804,1.38178893,59393.0,59392.0,0.1415075]
[1723889051024,1.39578893,59393.0,59392.0,0.1415075]
[1723889051290,1.40158893,59393.0,59392.0,0.1415075]
[1723889051503,1.48178893,59393.0,59392.0,0.1415075]
[1723889051848,1.49478893,59393.0,59392.0,0.1415075]
[1723889052504,1.40058893,59393.0,59392.0,0.1415075]
[1723889052712,0.4321746,59393.0,59392.0,0.1415075]
[1723889052910,0.4321746,59393.0,59392.0,0.14184402]
[1723889052911,0.1796196,59393.0,59392.0,0.14184402]
[1723889053113,0.30582506,59393.0,59392.0,0.14184402]
[1723889053467,0.1139664,59393.0,59392.0,0.14211125]
[1723889053669,0.026,59393.0,59392.0,0.14211125]
[1723889053893,0.152277,59393.0,59392.0,0.14211125]
[1723889054070,0.139277,59393.0,59392.0,0.14211125]
[1723889054206,0.146277,59393.0,59392.0,0.14211125]
[1723889054664,0.133277,59393.0,59392.0,0.14211125]
[1723889055006,0.139277,59393.0,59392.0,0.14211125]
[1723889055417,0.133277,59393.0,59392.0,0.14211125]
[1723889055820,0.138277,59393.0,59392.0,0.14211125]
[1723889056020,0.012,59393.0,59392.0,0.14211125]
[1723889056678,0.05128672,59398.0,59397.0,0.00033652]
[1723889056894,0.000825,59398.0,59397.0,0.13743652]
[1723889057991,0.010825,59398.0,59397.0,0.13743652]
[1723889058194,0.000825,59398.0,59397.0,0.13743652]
[1723889058403,0.000825,59398.0,59397.0,0.26370552]
[1723889058587,0.008825,59398.0,59397.0,0.26370552]
[1723889058798,0.008825,59398.0,59397.0,0.13743652]
[1723889059006,0.000825,59398.0,59397.0,0.13743652]
[1723889059387,0.002825,59398.0,59397.0,0.13743652]
[1723889060161,0.006825,59398.0,59397.0,0.13743652]
[1723889061120,0.006825,59398.0,59397.0,0.13770375]
[1723889061819,0.004825,59398.0,59397.0,0.13770375]
[1723889061998,0.001825,59398.0,59397.0,0.13770375]
[1723889062198,0.128091,59398.0,59397.0,0.13770375]
[1723889062569,0.001825,59398.0,59397.0,0.13770375]
[1723889063330,0.003825,59398.0,59397.0,0.13770375]
[1723889064595,0.003825,59398.0,59397.0,0.1371]
[1723889064596,0.130091,59398.0,59397.0,0.1371]
[1723889065611,0.382624,59398.0,59397.0,0.1371]
[1723889065834,0.635157,59398.0,59397.0,0.1371]
[1723889066040,0.80771154,59398.0,59397.0,0.1371]
[1723889066169,0.80771154,59398.0,59395.0,0.0614]
[1723889066170,0.631355,59396.0,59395.0,0.0614]
[1723889066371,1.22518617,59396.0,59395.0,0.0614]
[1723889066573,0.408832,59393.0,59392.0,0.0009075]
[1723889066781,0.755587,59393.0,59392.0,0.0009075]
[1723889068614,0.760587,59393.0,59392.0,0.0009075]
[1723889069233,0.755587,59393.0,59392.0,0.0009075]
[1723889069570,0.77077333,59393.0,59392.0,0.0009075]
[1723889069770,0.77777333,59393.0,59392.0,0.0009075]
[1723889070068,0.77077333,59393.0,59392.0,0.0009075]
[1723889070476,0.82110369,59393.0,59392.0,0.0009075]
[1723889070679,0.77077333,59393.0,59392.0,0.0009075]
[1723889071162,0.77777333,59393.0,59392.0,0.0009075]
[1723889071372,0.82810369,59393.0,59392.0,0.0009075]
[1723889072136,1.25221323,59393.0,59392.0,0.0009075]
[1723889073412,1.20188287,59393.0,59392.0,0.0009075]
[1723889073828,1.25223798,59393.0,59392.0,0.0009075]
[1723889075457,1.25223798,59393.0,59391.0,0.1386]
[1723889075458,0.631525,59380.0,59379.0,0.0009075]
[1723889075654,0.89727954,59380.0,59379.0,0.0009075]
[1723889075866,0.9056197,59380.0,59379.0,0.0009075]
[1723889076067,0.9559723,59380.0,59379.0,0.0009075]
[1723889076890,1.2085823,59380.0,59379.0,0.0009075]
[1723889077295,1.2185754,59380.0,59379.0,0.0009075]
[1723889077497,1.2095754,59380.0,59379.0,0.0009075]
[1723889077642,1.21984426,59380.0,59379.0,0.0009075]
[1723889077842,1.23184426,59380.0,59379.0,0.0009075]
[1723889078070,1.23184349,59380.0,59379.0,0.0009075]
[1723889078240,1.22323447,59380.0,59379.0,0.0009075]
[1723889078448,0.96962447,59380.0,59379.0,0.0834075]
[1723889078670,0.96962447,59380.0,59379.0,0.1438075]
[1723889079221,0.91927954,59380.0,59379.0,0.1438075]
[1723889080874,0.747725,59380.0,59379.0,0.1438075]
[1723889084394,0.91927954,59380.0,59379.0,0.1438075]
[1723889085231,0.90927954,59380.0,59379.0,0.1438075]
[1723889086703,0.90827954,59380.0,59379.0,0.1438075]
[1723889087022,0.92127954,59380.0,59379.0,0.1438075]
[1723889087229,0.91027954,59380.0,59379.0,0.1438075]
[1723889087542,0.90727954,59380.0,59379.0,0.1438075]
[1723889087749,0.91927954,59380.0,59379.0,0.1438075]
[1723889088078,0.90727954,59380.0,59379.0,0.1438075]
[1723889088408,0.735725,59380.0,59379.0,0.1438075]
[1723889088616,0.725725,59380.0,59379.0,0.1438075]
[1723889089901,0.738725,59380.0,59379.0,0.1438075]
[1723889090116,0.749725,59380.0,59379.0,0.1438075]
[1723889091073,0.725725,59380.0,59379.0,0.1438075]
[1723889091273,0.747725,59380.0,59379.0,0.1438075]
[1723889093158,0.725725,59380.0,59379.0,0.1438075]
[1723889093335,0.736725,59380.0,59379.0,0.1438075]
[1723889093565,0.749725,59380.0,59379.0,0.1438075]
[1723889096225,0.725725,59380.0,59379.0,0.1438075]
[1723889096475,0.735725,59380.0,59379.0,0.1438075]
[1723889096687,0.747725,59380.0,59379.0,0.1438075]
[1723889096822,0.91927954,59380.0,59379.0,0.1438075]
[1723889097745,1.17188954,59380.0,59379.0,0.1438075]
[1723889099131,0.91927954,59380.0,59379.0,0.1438075]
[1723889099531,1.17188954,59380.0,59379.0,0.1438075]
[1723889099975,0.91927954,59380.0,59379.0,0.1438075]
[1723889100231,1.17188954,59380.0,59379.0,0.1438075]
[1723889100396,0.91927954,59380.0,59379.0,0.1438075]
[1723889100547,0.82507954,59380.0,59379.0,0.1438075]
[1723889100918,0.91927954,59380.0,59379.0,0.1438075]
[1723889102048,0.82507954,59380.0,59379.0,0.1438075]
[1723889102449,0.747725,59380.0,59379.0,0.1438075]
[1723889102645,0.495115,59380.0,59379.0,0.1438075]
[1723889103516,0.495115,59380.0,59379.0,0.14414402]
[1723889103517,0.1162,59380.0,59379.0,0.14414402]
[1723889103716,0.022,59380.0,59379.0,0.14414402]
[1723889104511,0.012,59380.0,59379.0,0.14414402]
[1723889104717,0.012,59380.0,59379.0,0.1438075]
[1723889104975,0.004,59380.0,59379.0,0.1438075]
[1723889105208,0.25661,59380.0,59379.0,0.1438075]
[1723889105384,0.382915,59380.0,59379.0,0.1438075]
[1723889105764,0.71223644,59380.0,59379.0,0.1438075]
[1723889106329,0.71823644,59380.0,59379.0,0.1438075]
[1723889107475,0.66788896,59380.0,59379.0,0.1438075]
[1723889108273,0.74341019,59380.0,59379.0,0.1438075]
[1723889109542,0.66788896,59380.0,59379.0,0.1438075]
[1723889110485,0.76858393,59380.0,59379.0,0.1438075]
[1723889110866,0.13705893,59380.0,59379.0,0.14414402]
[1723889111062,0.11201368,59380.0,59379.0,0.14414402]
[1723889111342,0.01,59380.0,59379.0,0.14414402]
[1723889113034,0.01,59380.0,59379.0,0.52306502]
[1723889113236,0.01,59380.0,59379.0,0.77567902]
[1723889113588,0.006,59380.0,59379.0,0.77567902]
[1723889113996,0.17675932,59387.0,59386.0,0.00033652]
[1723889114156,0.05046932,59387.0,59386.0,0.14683652]
[1723889114358,0.20198998,59389.0,59388.0,0.00033652]
[1723889114563,0.20198998,59389.0,59388.0,0.14683652]
[1723889116353,0.20698998,59389.0,59388.0,0.14683652]
[1723889116533,0.45956198,59389.0,59388.0,0.1465]
[1723889117157,0.46756198,59389.0,59388.0,0.1465]
[1723889117913,0.46755518,59389.0,59388.0,0.1465]
[1723889118113,0.46755518,59389.0,59388.0,0.14683652]
[1723889118296,0.21498318,59389.0,59388.0,0.14683652]
[1723889118692,0.21498318,59389.0,59388.0,0.14710375]
[1723889118871,0.139286,59389.0,59388.0,0.14710375]
[1723889119378,0.18975074,59389.0,59388.0,0.14710375]
[1723889122273,0.18975074,59389.0,59388.0,0.1465]
[1723889122274,0.44232274,59389.0,59388.0,0.1465]
[1723889122495,0.44231403,59389.0,59388.0,0.1465]
[1723889123445,0.391858,59389.0,59388.0,0.14683652]
[1723889124716,0.391858,59389.0,59388.0,0.14710375]
[1723889126689,0.391858,59389.0,59388.0,0.1465]
[1723889127895,0.391858,59389.0,59388.0,0.14683652]
[1723889129346,0.391858,59389.0,59388.0,0.14774292]
[1723889130154,0.005,59389.0,59388.0,0.14774292]
[1723889130380,0.05043729,59391.0,59390.0,0.00033652]
[1723889130556,0.05043729,59391.0,59390.0,0.14683652]
[1723889130758,0.127104,59392.0,59390.0,0.14683652]
[1723889130759,0.17754129,59392.0,59390.0,0.14683652]
[1723889130955,0.17754129,59392.0,59388.0,0.0009064]
[1723889130956,0.17754129,59392.0,59391.0,0.14683652]
[1723889131163,0.05126229,59392.0,59391.0,0.14683652]
[1723889131359,0.17754129,59392.0,59391.0,0.14683652]
[1723889131559,0.127104,59392.0,59391.0,0.14683652]
[1723889132310,0.127104,59392.0,59391.0,0.14710375]
[1723889133133,0.136104,59392.0,59391.0,0.14710375]
[1723889134517,0.147104,59392.0,59391.0,0.14710375]
[1723889135118,0.138104,59392.0,59391.0,0.14710375]
[1723889135343,0.011825,59392.0,59391.0,0.27338475]
[1723889135543,0.015825,59392.0,59391.0,0.27338475]
[1723889135700,0.015825,59392.0,59391.0,0.52594775]
[1723889135906,0.011825,59392.0,59391.0,0.52594775]
[1723889136100,0.014825,59392.0,59391.0,0.52594775]
[1723889136731,0.000825,59392.0,59391.0,0.52594775]
[1723889137182,0.006825,59392.0,59391.0,0.52594775]
[1723889137345,0.001825,59392.0,59391.0,0.52594775]
[1723889147455,0.001825,59392.0,59391.0,0.77851075]
[1723889152295,0.001825,59392.0,59391.0,0.52594775]
[1723889155672,0.001825,59392.0,59391.0,0.52685415]
[1723889167255,0.001825,59392.0,59391.0,0.77941715]
[1723889172542,0.001825,59392.0,59391.0,0.52685415]
[1723889173007,0.001825,59392.0,59391.0,0.77941715]
[1723889178484,0.052333,59392.0,59391.0,0.77941715]
[1723889181098,0.052333,59392.0,59391.0,0.52685415]
[1723889181299,0.001825,59392.0,59391.0,0.52685415]
[1723889182108,0.077587,59392.0,59391.0,0.52685415]
[1723889182307,0.001825,59392.0,59391.0,0.52685415]
[1723889184568,0.05238265,59392.0,59391.0,0.52685415]
[1723889184901,0.001825,59392.0,59391.0,0.52685415]
[1723889188600,0.05238319,59392.0,59391.0,0.52685415]
[1723889190341,0.001825,59392.0,59391.0,0.52685415]
[1723889191184,0.05238319,59392.0,59391.0,0.52685415]
[1723889192909,0.001825,59392.0,59391.0,0.52685415]
[1723889203990,0.001825,59392.0,59391.0,0.2100874]
[1723889204193,0.54178941,59392.0,59391.0,0.0009064]
[1723889204353,0.66127102,59392.0,59391.0,0.0009064]
[1723889204557,0.534863,59392.0,59391.0,0.0009064]
[1723889205231,0.188104,59392.0,59391.0,0.00124292]
[1723889206558,0.188104,59392.0,59391.0,0.00151015]
[1723889207415,0.31442833,59392.0,59391.0,0.00151015]
[1723889207963,0.31442867,59392.0,59391.0,0.00151015]
[1723889209645,0.25342867,59392.0,59391.0,0.00151015]
[1723889210632,0.127104,59392.0,59391.0,0.00151015]
[1723889212006,0.379663,59392.0,59391.0,0.00151015]
[1723889212582,0.127104,59392.0,59391.0,0.00151015]
[1723889213237,0.22811635,59392.0,59391.0,0.00151015]
[1723889214394,0.22811635,59392.0,59391.0,0.08011015]
[1723889216281,0.48067535,59392.0,59391.0,0.08011015]
[1723889216639,0.48067535,59392.0,59391.0,0.00151015]
[1723889216991,0.48067535,59392.0,59391.0,0.14671015]
[1723889217664,0.48067535,59392.0,59391.0,0.0795064]
[1723889217856,0.48067535,59392.0,59391.0,0.0009064]
[1723889218438,0.48067535,59392.0,59391.0,0.00124292]
[1723889219087,0.48067535,59392.0,59391.0,0.00151015]
[1723889220705,0.57487535,59392.0,59391.0,0.0009064]